[Event "Late-Titled-Tuesday-Blitz-May-14-2024"]
[Site "Chess.com"]
[Date "2024.05.14"]
[Round "3"]
[White "MITerryble"]
[Black "Ykow"]
[Result "1-0"]
[WhiteElo "3001"]
[BlackElo "2546"]
[TimeControl "180+1"]
[EndTime "14:26:24 PDT"]
[Termination "MITerryble won by resignation"]

1. e4 {[%clk 0:02:53.3]} 1... e5 {[%clk 0:02:59.2]} 2. Nf3 {[%clk 0:02:53.6]}
2... Nc6 {[%clk 0:02:59.4]} 3. c3 {[%clk 0:02:54.2]} 3... Nf6 {[%clk 0:02:55.1]}
4. d4 {[%clk 0:02:54.7]} 4... Nxe4 {[%clk 0:02:54.4]} 5. d5 {[%clk 0:02:55]}
5... Bc5 {[%clk 0:02:55]} 6. dxc6 {[%clk 0:02:54.4]} 6... Bxf2+ {[%clk
0:02:55.2]} 7. Ke2 {[%clk 0:02:54.9]} 7... Bb6 {[%clk 0:02:55.7]} 8. Qd5 {[%clk
0:02:55.5]} 8... O-O {[%clk 0:02:47.5]} 9. Qxe4 {[%clk 0:02:50.5]} 9... d5
{[%clk 0:02:46.2]} 10. Qh4 {[%clk 0:02:50]} 10... Qd6 {[%clk 0:02:43.9]} 11. Kd1
{[%clk 0:02:43.8]} 11... h6 {[%clk 0:02:40.7]} 12. Qg3 {[%clk 0:02:38.5]} 12...
Re8 {[%clk 0:02:38.5]} 13. Be2 {[%clk 0:02:26.3]} 13... bxc6 {[%clk 0:02:37.3]}
14. Rf1 {[%clk 0:02:26.6]} 14... Bf5 {[%clk 0:02:28.3]} 15. Nh4 {[%clk
0:02:26.2]} 15... Bh7 {[%clk 0:02:24.9]} 16. Nf5 {[%clk 0:02:26.3]} 16... Bxf5
{[%clk 0:02:25.5]} 17. Rxf5 {[%clk 0:02:27.2]} 17... Rad8 {[%clk 0:02:25.7]} 18.
Nd2 {[%clk 0:02:07.8]} 18... Qe6 {[%clk 0:02:20]} 19. Bg4 {[%clk 0:02:07.4]}
19... e4 {[%clk 0:02:19.7]} 20. Nb3 {[%clk 0:01:56.6]} 20... d4 {[%clk
0:02:09.8]} 21. cxd4 {[%clk 0:01:54.7]} 21... Bxd4 {[%clk 0:02:10.2]} 22. Nxd4
{[%clk 0:01:54.9]} 22... Rxd4+ {[%clk 0:02:11.1]} 23. Ke1 {[%clk 0:01:55.5]}
23... e3 {[%clk 0:02:05.9]} 24. Rf4 {[%clk 0:01:43.8]} 24... Qc4 {[%clk
0:02:03.9]} 25. Rxd4 {[%clk 0:01:43.5]} 25... Qxd4 {[%clk 0:02:04.8]} 26. Be2
{[%clk 0:01:43]} 26... Re5 {[%clk 0:01:55.4]} 27. a4 {[%clk 0:01:38]} 27... f5
{[%clk 0:01:37.6]} 28. Ra3 {[%clk 0:01:21.9]} 28... f4 {[%clk 0:01:37.5]} 29.
Qg6 {[%clk 0:01:21.5]} 29... Rc5 {[%clk 0:01:37.8]} 30. Qe8+ {[%clk 0:01:20.2]}
30... Kh7 {[%clk 0:01:37.7]} 31. Bd3+ {[%clk 0:01:20.7]} 1-0

[Event "Late-Titled-Tuesday-Blitz-May-14-2024"]
[Site "Chess.com"]
[Date "2024.05.14"]
[Round "3"]
[White "Veleamater"]
[Black "karinachess1"]
[Result "0-1"]
[WhiteElo "2443"]
[BlackElo "2632"]
[TimeControl "180+1"]
[EndTime "14:26:32 PDT"]
[Termination "karinachess1 won by checkmate"]

1. e4 {[%clk 0:03:00.9]} 1... e5 {[%clk 0:03:00.3]} 2. Nf3 {[%clk 0:03:00.5]}
2... Nc6 {[%clk 0:03:01]} 3. Bc4 {[%clk 0:03:00.9]} 3... Nf6 {[%clk 0:03:01.1]}
4. d3 {[%clk 0:03:00.7]} 4... h6 {[%clk 0:03:01.3]} 5. c3 {[%clk 0:02:59.2]}
5... d6 {[%clk 0:03:01.8]} 6. h3 {[%clk 0:02:58.8]} 6... g5 {[%clk 0:03:02.2]}
7. Be3 {[%clk 0:02:50.5]} 7... Bg7 {[%clk 0:03:02.5]} 8. Nbd2 {[%clk 0:02:50.4]}
8... O-O {[%clk 0:02:59.1]} 9. O-O {[%clk 0:02:49.4]} 9... d5 {[%clk 0:02:59.2]}
10. Bb3 {[%clk 0:02:47.5]} 10... d4 {[%clk 0:02:58]} 11. cxd4 {[%clk 0:02:46]}
11... exd4 {[%clk 0:02:58.9]} 12. e5 {[%clk 0:02:44.5]} 12... Nh7 {[%clk
0:02:55.6]} 13. e6 {[%clk 0:02:19.5]} 13... Bxe6 {[%clk 0:02:50.8]} 14. Bxe6
{[%clk 0:02:19.5]} 14... fxe6 {[%clk 0:02:51.7]} 15. Qb3 {[%clk 0:02:19.9]}
15... dxe3 {[%clk 0:02:44.6]} 16. fxe3 {[%clk 0:02:20.1]} 16... Qd5 {[%clk
0:02:30.5]} 17. Qxb7 {[%clk 0:02:19.6]} 17... Ne5 {[%clk 0:02:23]} 18. Qa6
{[%clk 0:02:11.3]} 18... Nxd3 {[%clk 0:02:14.3]} 19. Nb3 {[%clk 0:02:00.7]}
19... Nxb2 {[%clk 0:01:53]} 20. Qe2 {[%clk 0:01:56]} 20... Qe4 {[%clk
0:01:47.1]} 21. Nfd2 {[%clk 0:01:40.4]} 21... Qd3 {[%clk 0:01:44.5]} 22. Qg4
{[%clk 0:01:40.4]} 22... Qxe3+ {[%clk 0:01:41]} 23. Kh1 {[%clk 0:01:40.8]} 23...
Nf6 {[%clk 0:01:40.7]} 24. Qb4 {[%clk 0:01:30.8]} 24... Nd3 {[%clk 0:01:40.1]}
25. Qa5 {[%clk 0:01:29.4]} 25... Nf2+ {[%clk 0:01:39.9]} 26. Kh2 {[%clk
0:01:28.5]} 26... N6g4+ {[%clk 0:01:30.9]} 27. hxg4 {[%clk 0:01:28.3]} 27...
Be5+ {[%clk 0:01:31]} 28. Kg1 {[%clk 0:01:22.7]} 28... Nh3+ {[%clk 0:01:30.9]}
29. Kh1 {[%clk 0:01:18.7]} 29... Qg1+ {[%clk 0:01:31.2]} 30. Rxg1 {[%clk
0:01:15.9]} 30... Nf2# {[%clk 0:01:32.1]} 0-1

[Event "Late-Titled-Tuesday-Blitz-May-14-2024"]
[Site "Chess.com"]
[Date "2024.05.14"]
[Round "3"]
[White "stollenmonster"]
[Black "GrotBchess"]
[Result "0-1"]
[WhiteElo "2865"]
[BlackElo "2553"]
[TimeControl "180+1"]
[EndTime "14:26:35 PDT"]
[Termination "GrotBchess won by resignation"]

1. e4 {[%clk 0:03:00.9]} 1... c5 {[%clk 0:02:59.5]} 2. Nf3 {[%clk 0:03:00.1]}
2... e6 {[%clk 0:02:59.1]} 3. Be2 {[%clk 0:02:59.7]} 3... Nc6 {[%clk 0:02:58.2]}
4. c4 {[%clk 0:03:00.1]} 4... Nd4 {[%clk 0:02:56.1]} 5. Nxd4 {[%clk 0:02:59.4]}
5... cxd4 {[%clk 0:02:57]} 6. d3 {[%clk 0:03:00.1]} 6... e5 {[%clk 0:02:57]} 7.
O-O {[%clk 0:03:00.5]} 7... d6 {[%clk 0:02:57.1]} 8. f4 {[%clk 0:03:01.1]} 8...
Nf6 {[%clk 0:02:56.3]} 9. Nd2 {[%clk 0:03:00.5]} 9... Be7 {[%clk 0:02:56.4]} 10.
Nf3 {[%clk 0:03:00.8]} 10... Qc7 {[%clk 0:02:56.6]} 11. Qe1 {[%clk 0:03:00.6]}
11... O-O {[%clk 0:02:46.5]} 12. f5 {[%clk 0:02:58.6]} 12... b5 {[%clk
0:02:40.3]} 13. b3 {[%clk 0:02:59.1]} 13... a5 {[%clk 0:02:38.5]} 14. h3 {[%clk
0:02:58.6]} 14... a4 {[%clk 0:02:38.5]} 15. Bd2 {[%clk 0:02:58.3]} 15... axb3
{[%clk 0:02:37]} 16. axb3 {[%clk 0:02:59.2]} 16... Rxa1 {[%clk 0:02:36.5]} 17.
Qxa1 {[%clk 0:02:58.4]} 17... Bb7 {[%clk 0:02:36.9]} 18. g4 {[%clk 0:02:56.7]}
18... Ra8 {[%clk 0:02:35.5]} 19. Qe1 {[%clk 0:02:54.6]} 19... Nd7 {[%clk
0:02:35.6]} 20. g5 {[%clk 0:02:53.2]} 20... Nc5 {[%clk 0:02:32.4]} 21. b4 {[%clk
0:02:49.1]} 21... Nb3 {[%clk 0:02:32.4]} 22. f6 {[%clk 0:02:47.1]} 22... Bf8
{[%clk 0:02:26.9]} 23. fxg7 {[%clk 0:02:47]} 23... Bxg7 {[%clk 0:02:26.9]} 24.
Nh4 {[%clk 0:02:43.1]} 24... bxc4 {[%clk 0:02:25.8]} 25. Bh5 {[%clk 0:02:37.6]}
25... Rf8 {[%clk 0:02:20.5]} 26. Nf5 {[%clk 0:02:29.2]} 26... cxd3 {[%clk
0:02:13.3]} 27. Nh6+ {[%clk 0:01:35.5]} 27... Bxh6 {[%clk 0:02:10.9]} 28. gxh6
{[%clk 0:01:36.4]} 28... f6 {[%clk 0:02:11]} 29. Qg3+ {[%clk 0:01:28.6]} 29...
Kh8 {[%clk 0:02:09.7]} 30. Bg5 {[%clk 0:01:28.9]} 30... Qe7 {[%clk 0:02:06.2]}
31. Kh2 {[%clk 0:01:12.2]} 31... fxg5 {[%clk 0:01:56.9]} 32. Rxf8+ {[%clk
0:01:04.1]} 32... Qxf8 {[%clk 0:01:56.5]} 33. Qxg5 {[%clk 0:01:05]} 33... Bxe4
{[%clk 0:01:53.3]} 0-1

[Event "Late-Titled-Tuesday-Blitz-May-14-2024"]
[Site "Chess.com"]
[Date "2024.05.14"]
[Round "3"]
[White "OIAM03"]
[Black "KebabJangles"]
[Result "1-0"]
[WhiteElo "1970"]
[BlackElo "2352"]
[TimeControl "180+1"]
[EndTime "14:26:47 PDT"]
[Termination "OIAM03 won by resignation"]

1. e4 {[%clk 0:02:55.8]} 1... c5 {[%clk 0:02:59.7]} 2. c3 {[%clk 0:02:54.9]}
2... Nf6 {[%clk 0:02:46.9]} 3. e5 {[%clk 0:02:54.5]} 3... Nd5 {[%clk 0:02:46.5]}
4. d4 {[%clk 0:02:55.1]} 4... e6 {[%clk 0:02:46.6]} 5. Nf3 {[%clk 0:02:55.6]}
5... Nc6 {[%clk 0:02:46]} 6. c4 {[%clk 0:02:48.6]} 6... Nb6 {[%clk 0:02:45.3]}
7. d5 {[%clk 0:02:48.6]} 7... Ne7 {[%clk 0:02:45.2]} 8. Nc3 {[%clk 0:02:45.5]}
8... Ng6 {[%clk 0:02:44.3]} 9. dxe6 {[%clk 0:02:18.2]} 9... fxe6 {[%clk
0:02:43.8]} 10. Bg5 {[%clk 0:02:11.3]} 10... Be7 {[%clk 0:02:42.6]} 11. Bxe7
{[%clk 0:02:01.5]} 11... Qxe7 {[%clk 0:02:43.5]} 12. Bd3 {[%clk 0:02:01.8]}
12... Nf4 {[%clk 0:02:41.4]} 13. O-O {[%clk 0:01:53.1]} 13... O-O {[%clk
0:02:40.7]} 14. Ne4 {[%clk 0:01:48.2]} 14... a5 {[%clk 0:02:31.6]} 15. Nd6
{[%clk 0:01:46]} 15... Ra6 {[%clk 0:02:29]} 16. Be4 {[%clk 0:01:28]} 16... Ra7
{[%clk 0:02:20.8]} 17. b3 {[%clk 0:01:26.8]} 17... a4 {[%clk 0:02:20.2]} 18. Rc1
{[%clk 0:01:25.7]} 18... g5 {[%clk 0:02:14]} 19. Nd2 {[%clk 0:00:52.7]} 19...
Qg7 {[%clk 0:02:10.9]} 20. g3 {[%clk 0:00:32.9]} 20... Ng6 {[%clk 0:02:01.3]}
21. Bxg6 {[%clk 0:00:25.9]} 21... Qxg6 {[%clk 0:02:00.1]} 22. N2e4 {[%clk
0:00:25.7]} 22... Na8 {[%clk 0:01:59.7]} 23. Nf6+ {[%clk 0:00:23.7]} 23... Kg7
{[%clk 0:01:59.6]} 24. Nxc8 {[%clk 0:00:20.9]} 1-0

[Event "Late-Titled-Tuesday-Blitz-May-14-2024"]
[Site "Chess.com"]
[Date "2024.05.14"]
[Round "3"]
[White "Josetricks"]
[Black "cthake"]
[Result "1-0"]
[WhiteElo "2443"]
[BlackElo "1858"]
[TimeControl "180+1"]
[EndTime "14:26:51 PDT"]
[Termination "Josetricks won by checkmate"]

1. d4 {[%clk 0:02:53.3]} 1... Nf6 {[%clk 0:02:58.8]} 2. Nc3 {[%clk 0:02:53.9]}
2... g6 {[%clk 0:02:53.3]} 3. e4 {[%clk 0:02:53.9]} 3... d6 {[%clk 0:02:50.6]}
4. Be3 {[%clk 0:02:52.8]} 4... Bg7 {[%clk 0:02:50.4]} 5. Qd2 {[%clk 0:02:52.4]}
5... c6 {[%clk 0:02:50.4]} 6. f3 {[%clk 0:02:51.6]} 6... O-O {[%clk 0:02:50]} 7.
h4 {[%clk 0:02:51.5]} 7... h5 {[%clk 0:02:46.4]} 8. Nh3 {[%clk 0:02:50.7]} 8...
b5 {[%clk 0:02:45.6]} 9. Ng5 {[%clk 0:02:50]} 9... b4 {[%clk 0:02:43.3]} 10. Ne2
{[%clk 0:02:50]} 10... a5 {[%clk 0:02:41.9]} 11. O-O-O {[%clk 0:02:48.4]} 11...
Ba6 {[%clk 0:02:34.1]} 12. Nf4 {[%clk 0:02:45.1]} 12... Bxf1 {[%clk 0:02:33.1]}
13. Rhxf1 {[%clk 0:02:44.9]} 13... Qc7 {[%clk 0:02:21.1]} 14. Nd3 {[%clk
0:02:36.5]} 14... Nbd7 {[%clk 0:02:19.9]} 15. Bf4 {[%clk 0:02:35.6]} 15... Rfc8
{[%clk 0:02:00.2]} 16. e5 {[%clk 0:02:34.5]} 16... Nd5 {[%clk 0:01:52.7]} 17. e6
{[%clk 0:02:34.8]} 17... fxe6 {[%clk 0:01:37.5]} 18. Nxe6 {[%clk 0:02:33.7]}
18... Qb6 {[%clk 0:01:36.2]} 19. Nxg7 {[%clk 0:02:30.1]} 19... Kxg7 {[%clk
0:01:36.4]} 20. Bh6+ {[%clk 0:02:17.7]} 20... Kh7 {[%clk 0:01:36.3]} 21. Be3
{[%clk 0:02:16.2]} 21... N7f6 {[%clk 0:01:35.3]} 22. Rfe1 {[%clk 0:02:14.2]}
22... Nxe3 {[%clk 0:01:30.9]} 23. Rxe3 {[%clk 0:02:05.2]} 23... Ra7 {[%clk
0:01:28.7]} 24. Rde1 {[%clk 0:02:03.1]} 24... Rcc7 {[%clk 0:01:23.9]} 25. Nf4
{[%clk 0:02:00.5]} 25... Nd5 {[%clk 0:01:18.8]} 26. Re6 {[%clk 0:01:53.5]} 26...
Nf6 {[%clk 0:01:14.8]} 27. Qd3 {[%clk 0:01:49.9]} 27... c5 {[%clk 0:00:40.8]}
28. Qxg6+ {[%clk 0:01:49.2]} 28... Kh8 {[%clk 0:00:39.5]} 29. Rxf6 {[%clk
0:01:49.9]} 29... exf6 {[%clk 0:00:38.5]} 30. Re8# {[%clk 0:01:49.5]} 1-0

[Event "Late-Titled-Tuesday-Blitz-May-14-2024"]
[Site "Chess.com"]
[Date "2024.05.14"]
[Round "3"]
[White "Hirna2005"]
[Black "Roberz12"]
[Result "0-1"]
[WhiteElo "2319"]
[BlackElo "2575"]
[TimeControl "180+1"]
[EndTime "14:26:53 PDT"]
[Termination "Roberz12 won by resignation"]

1. e4 {[%clk 0:02:56]} 1... e6 {[%clk 0:02:59.6]} 2. d4 {[%clk 0:02:55.6]} 2...
d5 {[%clk 0:02:59.8]} 3. e5 {[%clk 0:02:55.9]} 3... c5 {[%clk 0:03:00]} 4. c3
{[%clk 0:02:56.4]} 4... Nc6 {[%clk 0:03:00.4]} 5. Be3 {[%clk 0:02:56.4]} 5...
Nge7 {[%clk 0:02:56.5]} 6. Nf3 {[%clk 0:02:55.1]} 6... Nf5 {[%clk 0:02:55.9]} 7.
Qd2 {[%clk 0:02:55]} 7... a6 {[%clk 0:02:51]} 8. Bd3 {[%clk 0:02:53.9]} 8...
Nxe3 {[%clk 0:02:50.1]} 9. fxe3 {[%clk 0:02:53.4]} 9... b5 {[%clk 0:02:48]} 10.
O-O {[%clk 0:02:51.9]} 10... Bb7 {[%clk 0:02:28.2]} 11. a4 {[%clk 0:02:51]}
11... b4 {[%clk 0:02:26.7]} 12. c4 {[%clk 0:02:51.2]} 12... cxd4 {[%clk
0:01:59.4]} 13. exd4 {[%clk 0:02:50.3]} 13... dxc4 {[%clk 0:01:56.4]} 14. Bxc4
{[%clk 0:02:50]} 14... Na5 {[%clk 0:01:55.8]} 15. b3 {[%clk 0:02:37]} 15... Be7
{[%clk 0:01:42.1]} 16. Qd3 {[%clk 0:02:23.4]} 16... O-O {[%clk 0:01:35.3]} 17.
Nbd2 {[%clk 0:02:23.3]} 17... Rc8 {[%clk 0:01:22.3]} 18. Kh1 {[%clk 0:02:21.6]}
18... Qb6 {[%clk 0:01:17.2]} 19. Rac1 {[%clk 0:02:14.4]} 19... Rfd8 {[%clk
0:01:16.8]} 20. Qe3 {[%clk 0:01:57.4]} 20... Nxc4 {[%clk 0:01:07.6]} 21. Nxc4
{[%clk 0:01:55.7]} 21... Qa7 {[%clk 0:01:03.4]} 22. Qf4 {[%clk 0:01:39]} 22...
Bd5 {[%clk 0:01:00]} 23. Ne3 {[%clk 0:01:26.6]} 23... Bxf3 {[%clk 0:00:53.9]}
24. Rxf3 {[%clk 0:01:24]} 24... Rxc1+ {[%clk 0:00:53.4]} 0-1

[Event "Late-Titled-Tuesday-Blitz-May-14-2024"]
[Site "Chess.com"]
[Date "2024.05.14"]
[Round "3"]
[White "Mops_2004"]
[Black "jbking07"]
[Result "1-0"]
[WhiteElo "2830"]
[BlackElo "2397"]
[TimeControl "180+1"]
[EndTime "14:26:54 PDT"]
[Termination "Mops_2004 won by resignation"]

1. g3 {[%clk 0:03:00.9]} 1... e6 {[%clk 0:02:57.8]} 2. Bg2 {[%clk 0:03:00.6]}
2... Nf6 {[%clk 0:02:58.4]} 3. Nf3 {[%clk 0:03:00.8]} 3... d5 {[%clk 0:02:58.9]}
4. O-O {[%clk 0:03:00.8]} 4... Be7 {[%clk 0:02:59.5]} 5. c4 {[%clk 0:03:01]}
5... O-O {[%clk 0:02:59.9]} 6. d4 {[%clk 0:03:01.2]} 6... c6 {[%clk 0:02:58]} 7.
Qc2 {[%clk 0:03:00.2]} 7... Nbd7 {[%clk 0:02:53.6]} 8. Nbd2 {[%clk 0:02:59.8]}
8... b5 {[%clk 0:02:38.7]} 9. c5 {[%clk 0:02:59.4]} 9... a5 {[%clk 0:02:31.6]}
10. e4 {[%clk 0:02:44.2]} 10... Nxe4 {[%clk 0:02:26.8]} 11. Nxe4 {[%clk
0:02:45.1]} 11... dxe4 {[%clk 0:02:27.5]} 12. Qxe4 {[%clk 0:02:44.3]} 12... Bb7
{[%clk 0:02:27.8]} 13. Rd1 {[%clk 0:02:34.2]} 13... Nf6 {[%clk 0:02:26.6]} 14.
Qc2 {[%clk 0:02:28]} 14... Nd5 {[%clk 0:02:26.2]} 15. h4 {[%clk 0:02:26]} 15...
h6 {[%clk 0:02:22.6]} 16. Ne5 {[%clk 0:02:22.6]} 16... a4 {[%clk 0:02:02.9]} 17.
a3 {[%clk 0:02:19.2]} 17... Rc8 {[%clk 0:01:49.6]} 18. Qe2 {[%clk 0:02:18.8]}
18... Bf6 {[%clk 0:01:48.3]} 19. Bd2 {[%clk 0:02:14.5]} 19... Qe7 {[%clk
0:01:33.3]} 20. Ba5 {[%clk 0:01:54.4]} 20... Ra8 {[%clk 0:01:26.3]} 21. Be1
{[%clk 0:01:54.3]} 21... Rfd8 {[%clk 0:01:24.5]} 22. Rac1 {[%clk 0:01:53.4]}
22... Rdc8 {[%clk 0:01:20.7]} 23. Ng4 {[%clk 0:01:50.2]} 23... h5 {[%clk
0:01:17.9]} 24. Nxf6+ {[%clk 0:01:47.7]} 24... Nxf6 {[%clk 0:01:17.6]} 25. Bd2
{[%clk 0:01:47.9]} 25... g6 {[%clk 0:00:55.5]} 26. Bg5 {[%clk 0:01:45.6]} 26...
Kg7 {[%clk 0:00:55.6]} 27. Qf3 {[%clk 0:01:44.6]} 27... Rd8 {[%clk 0:00:43.8]}
28. Qf4 {[%clk 0:01:43.9]} 28... Rd5 {[%clk 0:00:43.2]} 29. Bxd5 {[%clk
0:01:43.1]} 1-0

[Event "Late-Titled-Tuesday-Blitz-May-14-2024"]
[Site "Chess.com"]
[Date "2024.05.14"]
[Round "3"]
[White "Oleg_Papayan"]
[Black "Eliwood44"]
[Result "1/2-1/2"]
[WhiteElo "2626"]
[BlackElo "2451"]
[TimeControl "180+1"]
[EndTime "14:27:06 PDT"]
[Termination "Game drawn by repetition"]

1. e4 {[%clk 0:02:58.9]} 1... e5 {[%clk 0:02:59]} 2. Nf3 {[%clk 0:02:59.1]} 2...
Nc6 {[%clk 0:02:58.1]} 3. Bb5 {[%clk 0:02:59.3]} 3... Nf6 {[%clk 0:02:55.6]} 4.
O-O {[%clk 0:02:57.6]} 4... Nxe4 {[%clk 0:02:55.3]} 5. Re1 {[%clk 0:02:57.7]}
5... Nd6 {[%clk 0:02:55.2]} 6. Nxe5 {[%clk 0:02:57.9]} 6... Be7 {[%clk
0:02:54.8]} 7. Bf1 {[%clk 0:02:57.4]} 7... O-O {[%clk 0:02:54.5]} 8. d4 {[%clk
0:02:53.9]} 8... Nf5 {[%clk 0:02:52.2]} 9. Nxc6 {[%clk 0:02:47]} 9... dxc6
{[%clk 0:02:49.7]} 10. c3 {[%clk 0:02:46.8]} 10... c5 {[%clk 0:02:47.1]} 11.
dxc5 {[%clk 0:02:42.6]} 11... Qxd1 {[%clk 0:02:45.1]} 12. Rxd1 {[%clk
0:02:43.5]} 12... Bxc5 {[%clk 0:02:44.3]} 13. Bf4 {[%clk 0:02:42.6]} 13... Bd6
{[%clk 0:02:41.1]} 14. Bxd6 {[%clk 0:02:41.1]} 14... Nxd6 {[%clk 0:02:40.9]} 15.
Na3 {[%clk 0:02:40.4]} 15... Be6 {[%clk 0:02:39.8]} 16. Nb5 {[%clk 0:02:12.8]}
16... Nxb5 {[%clk 0:02:38.3]} 17. Bxb5 {[%clk 0:02:13.7]} 17... Rad8 {[%clk
0:02:34.8]} 18. b3 {[%clk 0:02:07.1]} 18... a6 {[%clk 0:02:32]} 19. Be2 {[%clk
0:02:05.4]} 19... Bd5 {[%clk 0:02:28]} 20. f3 {[%clk 0:01:45.5]} 20... f6 {[%clk
0:02:25.2]} 21. Kf2 {[%clk 0:01:45.6]} 21... Kf7 {[%clk 0:02:24.1]} 22. Rxd5
{[%clk 0:01:21.6]} 22... Rxd5 {[%clk 0:02:21.9]} 23. Bc4 {[%clk 0:01:22.3]}
23... Rd8 {[%clk 0:02:20.3]} 24. Rd1 {[%clk 0:01:20.4]} 24... Ke6 {[%clk
0:02:20.6]} 25. Ke3 {[%clk 0:01:18.9]} 25... b5 {[%clk 0:02:17.5]} 26. Bxd5+
{[%clk 0:01:15.8]} 26... Rxd5 {[%clk 0:02:18.4]} 27. Rf1 {[%clk 0:01:05.4]}
27... c5 {[%clk 0:02:17]} 28. c4 {[%clk 0:00:50]} 28... bxc4 {[%clk 0:02:14.8]}
29. bxc4 {[%clk 0:00:50.9]} 29... Rd4 {[%clk 0:02:15.2]} 30. Rb1 {[%clk
0:00:51.4]} 30... Rxc4 {[%clk 0:02:12.6]} 31. Rb6+ {[%clk 0:00:51.3]} 31... Kf5
{[%clk 0:02:10.6]} 32. Rxa6 {[%clk 0:00:52.2]} 32... Rc2 {[%clk 0:02:10.6]} 33.
g4+ {[%clk 0:00:49.2]} 33... Kg6 {[%clk 0:02:08.5]} 34. h4 {[%clk 0:00:48.1]}
34... h5 {[%clk 0:02:07.9]} 35. a4 {[%clk 0:00:39.8]} 35... Rc3+ {[%clk
0:02:04.8]} 36. Kf4 {[%clk 0:00:38.5]} 36... Rc4+ {[%clk 0:01:59.6]} 37. Kg3
{[%clk 0:00:37.8]} 37... hxg4 {[%clk 0:02:00.1]} 38. fxg4 {[%clk 0:00:38.7]}
38... Rc3+ {[%clk 0:02:00.2]} 39. Kf4 {[%clk 0:00:38.7]} 39... Rc4+ {[%clk
0:02:00.7]} 40. Kf3 {[%clk 0:00:37.9]} 40... Rc3+ {[%clk 0:02:01.1]} 41. Kf4
{[%clk 0:00:38.5]} 41... Rc4+ {[%clk 0:02:01.5]} 42. Kg3 {[%clk 0:00:39]} 42...
Rc3+ {[%clk 0:02:01.9]} 43. Kf4 {[%clk 0:00:39.5]} 1/2-1/2

[Event "Late-Titled-Tuesday-Blitz-May-14-2024"]
[Site "Chess.com"]
[Date "2024.05.14"]
[Round "3"]
[White "Rsnr"]
[Black "ozates"]
[Result "1-0"]
[WhiteElo "2899"]
[BlackElo "2658"]
[TimeControl "180+1"]
[EndTime "14:27:07 PDT"]
[Termination "Rsnr won by resignation"]

1. d4 {[%clk 0:03:00.9]} 1... Nf6 {[%clk 0:02:59.1]} 2. c4 {[%clk 0:03:01.1]}
2... e6 {[%clk 0:02:59.7]} 3. Nc3 {[%clk 0:03:01.3]} 3... d5 {[%clk 0:03:00.6]}
4. cxd5 {[%clk 0:03:01]} 4... Nxd5 {[%clk 0:02:59.3]} 5. e4 {[%clk 0:03:00.8]}
5... Nxc3 {[%clk 0:02:59.9]} 6. bxc3 {[%clk 0:03:01.7]} 6... c5 {[%clk
0:03:00.5]} 7. Nf3 {[%clk 0:03:02.3]} 7... cxd4 {[%clk 0:03:01.4]} 8. cxd4
{[%clk 0:03:03]} 8... Bb4+ {[%clk 0:03:02]} 9. Bd2 {[%clk 0:03:03.6]} 9... Bxd2+
{[%clk 0:03:02.9]} 10. Qxd2 {[%clk 0:03:04.5]} 10... O-O {[%clk 0:03:03.7]} 11.
Bc4 {[%clk 0:03:04.9]} 11... Nd7 {[%clk 0:03:04.5]} 12. O-O {[%clk 0:03:05.2]}
12... b6 {[%clk 0:03:05.2]} 13. Rfe1 {[%clk 0:03:04.2]} 13... Bb7 {[%clk
0:03:05.8]} 14. Rad1 {[%clk 0:03:04.8]} 14... Rc8 {[%clk 0:03:06.5]} 15. Bb3
{[%clk 0:03:05.2]} 15... Nf6 {[%clk 0:02:55.5]} 16. d5 {[%clk 0:03:05.3]} 16...
exd5 {[%clk 0:02:54.6]} 17. exd5 {[%clk 0:03:06.2]} 17... Qd6 {[%clk 0:02:46.2]}
18. Nd4 {[%clk 0:03:06.3]} 18... Rfe8 {[%clk 0:02:32.2]} 19. Nf5 {[%clk
0:03:01.2]} 19... Qf8 {[%clk 0:02:15.8]} 20. Qg5 {[%clk 0:02:20.1]} 20... Kh8
{[%clk 0:01:35.6]} 21. d6 {[%clk 0:02:15.6]} 21... Ne4 {[%clk 0:01:21.1]} 22.
Qf4 {[%clk 0:02:08.3]} 22... Nc5 {[%clk 0:01:02.8]} 23. Ne7 {[%clk 0:01:57.1]}
23... Rcd8 {[%clk 0:00:29]} 24. Bxf7 {[%clk 0:01:52.7]} 24... Ne6 {[%clk
0:00:11.5]} 25. Ng6+ {[%clk 0:01:51.2]} 1-0

[Event "Late-Titled-Tuesday-Blitz-May-14-2024"]
[Site "Chess.com"]
[Date "2024.05.14"]
[Round "3"]
[White "PNEPaul"]
[Black "mouseslips_are_the_best"]
[Result "0-1"]
[WhiteElo "1921"]
[BlackElo "2365"]
[TimeControl "180+1"]
[EndTime "14:27:10 PDT"]
[Termination "mouseslips_are_the_best won by resignation"]

1. e4 {[%clk 0:02:46.1]} 1... e6 {[%clk 0:02:59.5]} 2. d4 {[%clk 0:02:45.5]}
2... d5 {[%clk 0:03:00.1]} 3. e5 {[%clk 0:02:45.8]} 3... c5 {[%clk 0:02:59.6]}
4. Qg4 {[%clk 0:02:45.4]} 4... cxd4 {[%clk 0:02:58]} 5. Nf3 {[%clk 0:02:44.8]}
5... Nc6 {[%clk 0:02:58.1]} 6. Bd3 {[%clk 0:02:44]} 6... Nge7 {[%clk 0:02:58.1]}
7. O-O {[%clk 0:02:42.4]} 7... Ng6 {[%clk 0:02:57.9]} 8. Qg3 {[%clk 0:02:41.3]}
8... Be7 {[%clk 0:02:54.1]} 9. a3 {[%clk 0:02:39.4]} 9... O-O {[%clk 0:02:43]}
10. c3 {[%clk 0:02:39]} 10... dxc3 {[%clk 0:02:30.4]} 11. Nxc3 {[%clk
0:02:38.3]} 11... a6 {[%clk 0:02:22.2]} 12. Re1 {[%clk 0:02:21.2]} 12... Qc7
{[%clk 0:02:21.5]} 13. h4 {[%clk 0:02:19.7]} 13... f6 {[%clk 0:02:18.8]} 14.
Bxg6 {[%clk 0:02:19]} 14... hxg6 {[%clk 0:02:18.5]} 15. Qxg6 {[%clk 0:02:06.5]}
15... Nxe5 {[%clk 0:02:04.3]} 16. Nxe5 {[%clk 0:01:57.4]} 16... fxe5 {[%clk
0:02:04.3]} 17. Bh6 {[%clk 0:01:41.1]} 17... Bxh4 {[%clk 0:01:54.8]} 18. Re2
{[%clk 0:01:11.8]} 18... Qf7 {[%clk 0:01:43.6]} 19. Qxf7+ {[%clk 0:01:06.7]}
19... Rxf7 {[%clk 0:01:43.1]} 20. Bd2 {[%clk 0:01:06.3]} 20... Bf6 {[%clk
0:01:42.7]} 21. Na4 {[%clk 0:01:03]} 21... b5 {[%clk 0:01:38]} 22. Nb6 {[%clk
0:01:02.1]} 22... Rb8 {[%clk 0:01:38.1]} 23. Nxc8 {[%clk 0:01:00.3]} 23... Rxc8
{[%clk 0:01:38.2]} 24. Bb4 {[%clk 0:00:56.1]} 24... e4 {[%clk 0:01:36]} 25. Rd1
{[%clk 0:00:50.5]} 25... Rfc7 {[%clk 0:01:35]} 26. g3 {[%clk 0:00:43]} 26... Rc2
{[%clk 0:01:33.7]} 27. Rxc2 {[%clk 0:00:33]} 27... Rxc2 {[%clk 0:01:33.1]} 0-1